[Event "7th Leer Open-A 2024"]
[Site "Leer"]
[Date "2024.10.31"]
[Round "1.1"]
[White "Kopylov, Michael"]
[Black "Schumann, Steffen"]
[Result "1-0"]
[ECO "E62"]
[WhiteElo "2340"]
[BlackElo "1981"]
[Annotator "RC"]
[PlyCount "69"]
[EventDate "2024.10.14"]
[EventType "swiss"]
[EventCountry "GER"]
[SourceTitle "playchess.com"]
[Source "ChessBase"]
[SourceQuality "1"]
[TimeControl "40/5400+30:900+30"]

1. d4 {[%emt 0:00:05]} Nf6 {[%emt 0:00:04]} 2. c4 {[%emt 0:00:15]} g6 {[%emt 0:00:09]} 3. g3 {[%emt 0:00:14]} Bg7 {[%emt 0:00:06]} 4. Bg2 {[%emt 0:00:07]} O-O {[%emt 0:00:28]} 5. Nc3 {[%emt 0:00:40]} d6 {[%emt 0:02:43]} 6. Nf3 {[%emt 0:00:08]} Nc6 {[%emt 0:00:37]} 7. O-O {[%emt 0:00:14]} e5 {[%emt 0:00:21]} 8. d5 {[%emt 0:03:10]} Ne7 {[%emt 0:00:43]} 9. c5 {[%emt 0:00:46]} Bg4 {[%emt 0:06:26]} 10. cxd6 {[%emt 0:03:29]} cxd6 {[%emt 0:00:02]} 11. Qb3 {[%emt 0:01:48]} Bxf3 {[%emt 0:01:39]} 12. Bxf3 {[%emt 0:01:58]} Qd7 {[%emt 0:00:13]} 13. e4 {[%emt 0:06:16]} Rab8 {[%emt 0:08:03]} 14. Be3 {[%emt 0:02:34]} b5 {[%emt 0:00:56]} 15. Rac1 {[%emt 0:14:02]} Rfc8 {[%emt 0:00:31]} 16. Qb4 {[%emt 0:07:26]} a6 {[%emt 0:08:25]} 17. Qa5 {[%emt 0:02:34]} Qb7 {[%emt 0:02:59]} 18. a3 {[%emt 0:00:34]} Nd7 {[%emt 0:03:34]} 19. Na2 {[%emt 0:07:34]} f5 {[%emt 0:13:04]} 20. Nb4 {[%emt 0:10:39]} fxe4 {[%emt 0:05:37]} 21. Bg4 {[%emt 0:12:11]} Rc4 {[%emt 0:08:56]} 22. Nc6 {[%emt 0:07:21]} Rxc6 {[%emt 0:06:51]} 23. dxc6 {[%emt 0:03:01]} Nxc6 {[%emt 0:00:07]} 24. Rxc6 {[%emt 0:03:57]} Qxc6 {[%emt 0:00:08]} 25. Rc1 {[%emt 0:00:03]} Nc5 {[%emt 0:01:55]} 26. b4 {[%emt 0:00:08]} Bf8 {[%emt 0:00:29]} 27. bxc5 {[%emt 0:00:48]} dxc5 {[%emt 0:00:08]} 28. Qc3 {[%emt 0:00:31]} c4 {[%emt 0:01:10]} 29. Rd1 {[%emt 0:03:27]} h5 {[%emt 0:02:35]} 30. Bh3 {[%emt 0:02:36]} Qf6 {[%emt 0:00:13]} 31. Rd7 {[%emt 0:01:34]} Re8 {[%emt 0:00:27]} 32. Qd2 {[%emt 0:00:42]} Bxa3 {[%emt 0:01:12]} 33. Qd5+ {[%emt 0:01:34]} Kh8 {[%emt 0:00:02]} 34. Bg5 {[%emt 0:02:33]} Qf8 {[%emt 0:04:01]} 35. Be6 {[%emt 0:01:27]} 1-0

[Event "7th Leer Open-A 2024"]
[Site "Leer"]
[Date "2024.10.31"]
[Round "1.2"]
[White "Goldmann, David"]
[Black "Kopylov, Daniel"]
[Result "0-1"]
[ECO "B50"]
[WhiteElo "1969"]
[BlackElo "2369"]
[Annotator "RC"]
[PlyCount "74"]
[EventDate "2024.10.14"]
[EventType "swiss"]
[EventCountry "GER"]
[SourceTitle "playchess.com"]
[Source "ChessBase"]
[SourceQuality "1"]
[TimeControl "40/5400+30:900+30"]

1. e4 {[%emt 0:00:03]} c5 {[%emt 0:01:19]} 2. Nf3 {[%emt 0:00:27]} Nc6 {[%emt 0:00:39]} 3. Nc3 {[%emt 0:04:12]} d6 {[%emt 0:01:09]} 4. Bc4 {[%emt 0:00:09]} Nf6 {[%emt 0:00:48]} 5. d3 {[%emt 0:08:01]} Bg4 {[%emt 0:00:58]} 6. h3 {[%emt 0:02:16]} Bh5 {[%emt 0:02:22]} 7. Nd5 {[%emt 0:05:49]} Nxd5 {[%emt 0:13:44]} 8. Bxd5 {[%emt 0:05:26]} e6 {[%emt 0:08:47]} 9. Bb3 {[%emt 0:03:05]} d5 {[%emt 0:06:46]} 10. exd5 {[%emt 0:03:51]} exd5 {[%emt 0:02:33]} 11. Qe2+ {[%emt 0:00:15]} Be7 {[%emt 0:03:27]} 12. g4 {[%emt 0:00:46]} Bg6 {[%emt 0:00:12]} 13. Bg5 {[%emt 0:00:21]} O-O {[%emt 0:11:26]} 14. Bxe7 {[%emt 0:05:29]} Qxe7 {[%emt 0:03:28]} 15. Qxe7 {[%emt 0:01:34]} Nxe7 {[%emt 0:00:02]} 16. O-O {[%emt 0:02:50]} b5 {[%emt 0:05:17]} 17. Rfe1 {[%emt 0:02:12]} Rfe8 {[%emt 0:03:25]} 18. Ne5 {[%emt 0:03:16]} c4 {[%emt 0:05:44]} 19. dxc4 {[%emt 0:01:04]} dxc4 {[%emt 0:00:10]} 20. Nxc4 {[%emt 0:00:07]} bxc4 {[%emt 0:01:13]} 21. Ba4 {[%emt 0:00:02]} Kf8 {[%emt 0:01:32]} 22. Bxe8 {[%emt 0:02:25]} Rxe8 {[%emt 0:00:02]} 23. c3 {[%emt 0:00:28]} Rc8 {[%emt 0:16:21]} 24. Re5 {[%emt 0:04:42]} Bd3 {[%emt 0:01:05]} 25. b3 {[%emt 0:02:41]} Ng6 {[%emt 0:00:52]} 26. Ra5 {[%emt 0:03:23]} Rc7 {[%emt 0:00:08]} 27. Re1 {[%emt 0:01:58]} Nf4 {[%emt 0:01:04]} 28. Re3 {[%emt 0:01:09]} g6 {[%emt 0:01:36]} 29. bxc4 {[%emt 0:02:10]} Bxc4 {[%emt 0:00:50]} 30. Ree5 {[%emt 0:01:39]} Nxh3+ {[%emt 0:02:45]} 31. Kg2 {[%emt 0:01:44]} Nf4+ {[%emt 0:00:03]} 32. Kg3 {[%emt 0:00:39]} Ne6 {[%emt 0:04:54]} 33. f4 {[%emt 0:00:15]} f6 {[%emt 0:00:50]} 34. Re4 {[%emt 0:00:02]} Kf7 {[%emt 0:00:20]} 35. Re3 {[%emt 0:01:23]} a6 {[%emt 0:00:19]} 36. Ra4 {[%emt 0:00:24]} h6 {[%emt 0:01:47]} 37. Rb4 {[%emt 0:00:42]} Bxa2 {[%emt 0:00:20]} 0-1

[Event "7th Leer Open-A 2024"]
[Site "Leer"]
[Date "2024.10.31"]
[Round "1.3"]
[White "Van Osch, Mees"]
[Black "Jonnek, Thomas"]
[Result "1-0"]
[ECO "B11"]
[WhiteElo "2362"]
[BlackElo "2012"]
[Annotator "RC"]
[PlyCount "81"]
[EventDate "2024.10.14"]
[EventType "swiss"]
[EventCountry "GER"]
[SourceTitle "playchess.com"]
[Source "ChessBase"]
[SourceQuality "1"]
[TimeControl "40/5400+30:900+30"]

1. e4 {[%emt 0:00:03]} c6 {[%emt 0:00:12]} 2. Nc3 {[%emt 0:00:31]} d5 {[%emt 0:01:07]} 3. Nf3 {[%emt 0:00:05]} dxe4 {[%emt 0:01:37]} 4. Nxe4 {[%emt 0:00:05]} Nf6 {[%emt 0:00:12]} 5. Qe2 {[%emt 0:01:17]} Bg4 {[%emt 0:06:41]} 6. h3 {[%emt 0:01:59]} Bxf3 {[%emt 0:01:52]} 7. Nxf6+ {[%emt 0:03:01]} gxf6 {[%emt 0:00:06]} 8. Qxf3 {[%emt 0:00:02]} Qd5 {[%emt 0:03:34]} 9. Be2 {[%emt 0:04:58]} Nd7 {[%emt 0:11:16]} 10. O-O {[%emt 0:03:55]} Qxf3 {[%emt 0:09:44]} 11. Bxf3 {[%emt 0:00:02]} Bh6 {[%emt 0:01:35]} 12. a4 {[%emt 0:03:36]} a5 {[%emt 0:09:28]} 13. Bh5 {[%emt 0:05:59]} O-O {[%emt 0:03:02]} 14. f4 {[%emt 0:01:06]} f5 {[%emt 0:03:26]} 15. d3 {[%emt 0:02:50]} Rfd8 {[%emt 0:09:42]} 16. g3 {[%emt 0:05:31]} e6 {[%emt 0:05:56]} 17. Be2 {[%emt 0:11:06]} Bf8 {[%emt 0:05:22]} 18. Be3 {[%emt 0:00:53]} Bc5 {[%emt 0:01:28]} 19. d4 {[%emt 0:00:31]} Bb6 {[%emt 0:23:40]} 20. Rad1 {[%emt 0:03:49]} Nf6 {[%emt 0:00:00]} 21. Bf3 {[%emt 0:00:46]} Rd7 {[%emt 0:00:00]} 22. c3 {[%emt 0:00:40]} Ne4 {[%emt 0:00:00]} 23. g4 {[%emt 0:01:03]} Rad8 {[%emt 0:00:00]} 24. Rde1 {[%emt 0:25:40]} Re8 {[%emt 0:00:00]} 25. Bxe4 {[%emt 0:01:01]} fxe4 {[%emt 0:00:00]} 26. g5 {[%emt 0:00:09]} Rd5 {[%emt 0:00:00]} 27. Bf2 {[%emt 0:01:07]} Rf5 {[%emt 0:00:00]} 28. Rxe4 {[%emt 0:00:22]} h6 {[%emt 0:00:41]} 29. h4 {[%emt 0:00:56]} hxg5 {[%emt 0:01:11]} 30. fxg5 {[%emt 0:00:20]} Kg7 {[%emt 0:00:20]} 31. Bg3 {[%emt 0:00:35]} Rxf1+ {[%emt 0:01:34]} 32. Kxf1 {[%emt 0:00:04]} Kg6 {[%emt 0:00:49]} 33. Rf4 {[%emt 0:01:25]} Bd8 {[%emt 0:00:07]} 34. Kg2 {[%emt 0:00:30]} f6 {[%emt 0:01:00]} 35. gxf6 {[%emt 0:01:41]} Bxf6 {[%emt 0:00:01]} 36. Re4 {[%emt 0:00:05]} Rg8 {[%emt 0:00:52]} 37. Rg4+ {[%emt 0:00:40]} Kf7 {[%emt 0:00:28]} 38. Rxg8 {[%emt 0:00:04]} Kxg8 {[%emt 0:00:01]} 39. h5 {[%emt 0:00:33]} Bg5 {[%emt 0:00:39]} 40. Bc7 {[%emt 0:01:00]} Bc1 {[%emt 0:00:33]} 41. b3 {[%emt 0:15:07]} 1-0

[Event "7th Leer Open-A 2024"]
[Site "Leer"]
[Date "2024.10.31"]
[Round "1.4"]
[White "Lau, Udo"]
[Black "Nedic, Dusan"]
[Result "0-1"]
[ECO "E61"]
[WhiteElo "2010"]
[BlackElo "2339"]
[Annotator "RC"]
[PlyCount "72"]
[EventDate "2024.10.14"]
[EventType "swiss"]
[EventCountry "GER"]
[SourceTitle "playchess.com"]
[Source "ChessBase"]
[SourceQuality "1"]
[TimeControl "40/5400+30:900+30"]

1. d4 {[%emt 0:00:04]} Nf6 {[%emt 0:00:41]} 2. Nf3 {[%emt 0:00:39]} g6 {[%emt 0:00:32]} 3. c4 {[%emt 0:00:50]} Bg7 {[%emt 0:03:35]} 4. Nc3 {[%emt 0:00:24]} O-O {[%emt 0:00:33]} 5. Bg5 {[%emt 0:02:44]} h6 {[%emt 0:00:27]} 6. Bh4 {[%emt 0:01:09]} c5 {[%emt 0:01:10]} 7. e3 {[%emt 0:01:42]} cxd4 {[%emt 0:02:22]} 8. exd4 {[%emt 0:02:00]} d6 {[%emt 0:00:26]} 9. Be2 {[%emt 0:00:43]} Nc6 {[%emt 0:01:06]} 10. d5 {[%emt 0:11:10]} Nb8 {[%emt 0:01:46]} 11. O-O {[%emt 0:02:26]} Nbd7 {[%emt 0:00:07]} 12. Rc1 {[%emt 0:04:23]} g5 {[%emt 0:06:05]} 13. Bg3 {[%emt 0:00:19]} Nh5 {[%emt 0:03:54]} 14. Nd4 {[%emt 0:05:04]} Nxg3 {[%emt 0:00:19]} 15. hxg3 {[%emt 0:00:17]} Ne5 {[%emt 0:02:26]} 16. g4 {[%emt 0:02:31]} Qb6 {[%emt 0:01:34]} 17. Nf5 {[%emt 0:06:38]} Bxf5 {[%emt 0:01:06]} 18. gxf5 {[%emt 0:00:10]} Qxb2 {[%emt 0:00:55]} 19. Rc2 {[%emt 0:00:44]} Qb6 {[%emt 0:00:25]} 20. Ne4 {[%emt 0:01:47]} Rac8 {[%emt 0:01:19]} 21. Kh1 {[%emt 0:02:06]} Nd7 {[%emt 0:01:07]} 22. Bd3 {[%emt 0:11:54]} Qd4 {[%emt 0:01:26]} 23. Qe2 {[%emt 0:01:22]} Rc7 {[%emt 0:05:22]} 24. Rd1 {[%emt 0:00:37]} Rfc8 {[%emt 0:00:51]} 25. Nd2 {[%emt 0:08:31]} Nc5 {[%emt 0:05:45]} 26. Nb3 {[%emt 0:05:10]} Qh4+ {[%emt 0:01:38]} 27. Kg1 {[%emt 0:00:45]} Nxd3 {[%emt 0:01:44]} 28. Rxd3 {[%emt 0:02:51]} Rxc4 {[%emt 0:00:46]} 29. Rcd2 {[%emt 0:00:37]} Be5 {[%emt 0:03:36]} 30. g3 {[%emt 0:06:42]} Qh3 {[%emt 0:02:24]} 31. Qf3 {[%emt 0:02:40]} b6 {[%emt 0:02:39]} 32. Rd1 {[%emt 0:03:49]} Kg7 {[%emt 0:03:03]} 33. Nd2 {[%emt 0:03:40]} Ra4 {[%emt 0:04:19]} 34. a3 {[%emt 0:00:33]} Rc2 {[%emt 0:01:25]} 35. Nf1 {[%emt 0:00:25]} Ra2 {[%emt 0:04:47]} 36. Ne3 {[%emt 0:03:00]} Rf4 {[%emt 0:01:51]} 0-1

[Event "7th Leer Open-A 2024"]
[Site "Leer"]
[Date "2024.10.31"]
[Round "1.5"]
[White "Lammers, Markus"]
[Black "Kort, Felix"]
[Result "1-0"]
[ECO "E14"]
[WhiteElo "2312"]
[BlackElo "2005"]
[Annotator "RC"]
[PlyCount "55"]
[EventDate "2024.10.14"]
[EventType "swiss"]
[EventCountry "GER"]
[SourceTitle "playchess.com"]
[Source "ChessBase"]
[SourceQuality "1"]
[TimeControl "40/5400+30:900+30"]

1. d4 {[%emt 0:00:06]} Nf6 {[%emt 0:01:42]} 2. Nf3 {[%emt 0:00:15]} e6 {[%emt 0:00:27]} 3. e3 {[%emt 0:00:19]} b6 {[%emt 0:00:26]} 4. Bd3 {[%emt 0:00:20]} Bb7 {[%emt 0:00:07]} 5. O-O {[%emt 0:00:39]} d5 {[%emt 0:01:39]} 6. c4 {[%emt 0:00:39]} Bd6 {[%emt 0:01:51]} 7. Nc3 {[%emt 0:00:10]} O-O {[%emt 0:02:07]} 8. Qc2 {[%emt 0:01:30]} Nbd7 {[%emt 0:20:43]} 9. cxd5 {[%emt 0:04:32]} exd5 {[%emt 0:00:39]} 10. Nb5 {[%emt 0:00:10]} Qe7 {[%emt 0:02:41]} 11. b3 {[%emt 0:02:01]} Rfe8 {[%emt 0:12:02]} 12. Bb2 {[%emt 0:01:39]} c5 {[%emt 0:06:10]} 13. Rac1 {[%emt 0:07:36]} Bb8 {[%emt 0:05:54]} 14. dxc5 {[%emt 0:01:42]} bxc5 {[%emt 0:00:43]} 15. Bxf6 {[%emt 0:02:03]} Qxf6 {[%emt 0:00:08]} 16. Bxh7+ {[%emt 0:00:15]} Kh8 {[%emt 0:00:10]} 17. Qf5 {[%emt 0:06:58]} Qh6 {[%emt 0:09:05]} 18. Qxd7 {[%emt 0:08:32]} Bc6 {[%emt 0:01:44]} 19. Qxf7 {[%emt 0:01:15]} Bxb5 {[%emt 0:16:44]} 20. Rxc5 {[%emt 0:01:14]} Bxh2+ {[%emt 0:10:07]} 21. Nxh2 {[%emt 0:01:11]} Rf8 {[%emt 0:02:12]} 22. Qxd5 {[%emt 0:14:06]} Bxf1 {[%emt 0:00:41]} 23. Qd1 {[%emt 0:10:15]} Rad8 {[%emt 0:01:17]} 24. Qg4 {[%emt 0:00:40]} Rxf2 {[%emt 0:02:17]} 25. Kxf2 {[%emt 0:10:08]} Rd2+ {[%emt 0:00:06]} 26. Kxf1 {[%emt 0:00:10]} Qf6+ {[%emt 0:00:20]} 27. Nf3 {[%emt 0:00:30]} Qa1+ {[%emt 0:00:13]} 28. Ne1 {[%emt 0:00:10]} 1-0

[Event "7th Leer Open-A 2024"]
[Site "Leer"]
[Date "2024.10.31"]
[Round "1.6"]
[White "Budzyn, Matthias"]
[Black "Tschernatsch, Johannes"]
[Result "0-1"]
[ECO "B02"]
[WhiteElo "1986"]
[BlackElo "2319"]
[Annotator "RC"]
[PlyCount "113"]
[EventDate "2024.10.14"]
[EventType "swiss"]
[EventCountry "GER"]
[SourceTitle "playchess.com"]
[Source "ChessBase"]
[SourceQuality "1"]
[TimeControl "40/5400+30:900+30"]

1. e4 {[%emt 0:00:03]} c5 {[%emt 0:00:05]} 2. c3 {[%emt 0:00:11]} Nf6 {[%emt 0:00:05]} 3. e5 {[%emt 0:00:11]} Nd5 {[%emt 0:00:04]} 4. Nf3 {[%emt 0:00:10]} d6 {[%emt 0:00:06]} 5. d4 {[%emt 0:01:05]} cxd4 {[%emt 0:00:05]} 6. exd6 {[%emt 0:00:23]} e6 {[%emt 0:04:50]} 7. cxd4 {[%emt 0:03:15]} Bxd6 {[%emt 0:00:19]} 8. Nc3 {[%emt 0:00:25]} O-O {[%emt 0:00:43]} 9. Nxd5 {[%emt 0:06:34]} exd5 {[%emt 0:00:08]} 10. Be2 {[%emt 0:14:20]} Nc6 {[%emt 0:00:25]} 11. O-O {[%emt 0:00:28]} Bf5 {[%emt 0:03:12]} 12. a3 {[%emt 0:07:01]} Re8 {[%emt 0:02:33]} 13. Be3 {[%emt 0:02:10]} Qb6 {[%emt 0:07:02]} 14. Bd3 {[%emt 0:01:44]} Be4 {[%emt 0:07:42]} 15. Bxe4 {[%emt 0:09:34]} Rxe4 {[%emt 0:00:21]} 16. Ng5 {[%emt 0:01:56]} Re7 {[%emt 0:01:26]} 17. Qd3 {[%emt 0:03:50]} g6 {[%emt 0:00:14]} 18. b4 {[%emt 0:07:03]} a6 {[%emt 0:06:33]} 19. Nf3 {[%emt 0:09:08]} Qb5 {[%emt 0:00:35]} 20. Qd2 {[%emt 0:00:04]} a5 {[%emt 0:02:52]} 21. Bf4 {[%emt 0:04:15]} Re2 {[%emt 0:02:33]} 22. Qc1 {[%emt 0:00:39]} Bf8 {[%emt 0:01:23]} 23. bxa5 {[%emt 0:04:15]} Nxa5 {[%emt 0:02:42]} 24. Ne5 {[%emt 0:02:46]} Nc4 {[%emt 0:08:54]} 25. Ng4 {[%emt 0:03:36]} Bg7 {[%emt 0:02:55]} 26. Rb1 {[%emt 0:05:53]} Qc6 {[%emt 0:01:01]} 27. Qd1 {[%emt 0:01:24]} Re4 {[%emt 0:01:51]} 28. Nh6+ {[%emt 0:01:10]} Kf8 {[%emt 0:01:05]} 29. Bc1 {[%emt 0:02:37]} b6 {[%emt 0:06:31]} 30. Qf3 {[%emt 0:01:47]} Qf6 {[%emt 0:00:42]} 31. Ng4 {[%emt 0:04:25]} Qxf3 {[%emt 0:00:39]} 32. gxf3 {[%emt 0:00:03]} Rxd4 {[%emt 0:00:18]} 33. Ne3 {[%emt 0:00:42]} Rd3 {[%emt 0:05:02]} 34. Rb5 {[%emt 0:01:04]} Nxe3 {[%emt 0:00:39]} 35. Bxe3 {[%emt 0:00:17]} d4 {[%emt 0:00:17]} 36. Bf4 {[%emt 0:00:29]} Rxf3 {[%emt 0:00:52]} 37. Bd6+ {[%emt 0:01:09]} Kg8 {[%emt 0:00:40]} 38. Rxb6 {[%emt 0:00:08]} d3 {[%emt 0:01:52]} 39. Rd1 {[%emt 0:00:19]} Bd4 {[%emt 0:00:37]} 40. Rb3 {[%emt 0:00:39]} Rxf2 {[%emt 0:05:13]} 41. Rbxd3 {[%emt 0:17:36]} Bb6 {[%emt 0:15:30]} 42. Kh1 {[%emt 0:00:00]} h5 {[%emt 0:00:00]} 43. Bg3 {[%emt 0:00:00]} Ra2 {[%emt 0:00:00]} 44. Bd6 {[%emt 0:00:00]} Bd8 {[%emt 0:01:46]} 45. Bb4 {[%emt 0:03:12]} Bc7 {[%emt 0:01:26]} 46. R1d2 {[%emt 0:00:00]} Rxd2 {[%emt 0:00:40]} 47. Rxd2 {[%emt 0:00:00]} Be5 {[%emt 0:02:04]} 48. Kg2 {[%emt 0:00:00]} Kg7 {[%emt 0:01:09]} 49. Ra2 {[%emt 0:00:00]} Ra4 {[%emt 0:00:52]} 50. Re2 {[%emt 0:00:00]} Kf6 {[%emt 0:01:08]} 51. Kf3 {[%emt 0:00:24]} Kf5 {[%emt 0:00:42]} 52. h4 {[%emt 0:01:27]} Ra8 {[%emt 0:02:13]} 53. Rd2 {[%emt 0:00:42]} f6 {[%emt 0:01:50]} 54. Ra2 {[%emt 0:01:28]} Ra4 {[%emt 0:00:51]} 55. Rc2 {[%emt 0:00:42]} g5 {[%emt 0:01:58]} 56. hxg5 {[%emt 0:00:36]} fxg5 {[%emt 0:00:34]} 57. Rc5 {[%emt 0:00:41]} 0-1

[Event "7th Leer Open-A 2024"]
[Site "Leer"]
[Date "2024.10.31"]
[Round "1.7"]
[White "Bracker, Frank"]
[Black "Schnelting, Michael"]
[Result "1-0"]
[ECO "A55"]
[WhiteElo "2297"]
[BlackElo "2003"]
[Annotator "RC"]
[PlyCount "79"]
[EventDate "2024.10.14"]
[EventType "swiss"]
[EventCountry "GER"]
[SourceTitle "playchess.com"]
[Source "ChessBase"]
[SourceQuality "1"]
[TimeControl "40/5400+30:900+30"]

1. Nf3 {[%emt 0:02:53]} Nf6 {[%emt 0:00:58]} 2. c4 {[%emt 0:00:13]} d6 {[%emt 0:00:23]} 3. d4 {[%emt 0:00:42]} Nbd7 {[%emt 0:00:36]} 4. Nc3 {[%emt 0:00:19]} c6 {[%emt 0:00:58]} 5. e4 {[%emt 0:01:05]} e5 {[%emt 0:00:28]} 6. Be2 {[%emt 0:00:16]} Be7 {[%emt 0:00:21]} 7. O-O {[%emt 0:00:18]} O-O {[%emt 0:00:28]} 8. Qc2 {[%emt 0:00:30]} a6 {[%emt 0:01:07]} 9. Rd1 {[%emt 0:07:24]} Qc7 {[%emt 0:03:48]} 10. a4 {[%emt 0:00:47]} a5 {[%emt 0:05:21]} 11. h3 {[%emt 0:03:01]} exd4 {[%emt 0:04:08]} 12. Nxd4 {[%emt 0:01:27]} Nc5 {[%emt 0:00:23]} 13. Bf4 {[%emt 0:16:13]} Re8 {[%emt 0:01:41]} 14. Nb3 {[%emt 0:03:53]} Nfd7 {[%emt 0:10:44]} 15. Bg3 {[%emt 0:05:22]} Nxb3 {[%emt 0:05:09]} 16. Qxb3 {[%emt 0:00:22]} Nc5 {[%emt 0:00:28]} 17. Qc2 {[%emt 0:03:41]} Be6 {[%emt 0:01:42]} 18. b3 {[%emt 0:05:03]} Rad8 {[%emt 0:00:45]} 19. Rab1 {[%emt 0:04:21]} Qb6 {[%emt 0:07:44]} 20. Bf3 {[%emt 0:06:32]} g6 {[%emt 0:06:42]} 21. Bf4 {[%emt 0:05:19]} Rd7 {[%emt 0:03:48]} 22. g4 {[%emt 0:10:01]} Qd8 {[%emt 0:07:21]} 23. Kg2 {[%emt 0:02:48]} Bf6 {[%emt 0:01:50]} 24. Ne2 {[%emt 0:01:12]} Be5 {[%emt 0:06:20]} 25. Be3 {[%emt 0:00:52]} Na6 {[%emt 0:11:07]} 26. Nd4 {[%emt 0:02:58]} Nb4 {[%emt 0:01:02]} 27. Qd2 {[%emt 0:00:58]} d5 {[%emt 0:04:07]} 28. exd5 {[%emt 0:02:15]} cxd5 {[%emt 0:00:49]} 29. Nxe6 {[%emt 0:02:16]} fxe6 {[%emt 0:00:55]} 30. Bc5 {[%emt 0:01:46]} Qf6 {[%emt 0:07:16]} 31. Bxb4 {[%emt 0:05:50]} axb4 {[%emt 0:00:25]} 32. cxd5 {[%emt 0:01:05]} Red8 {[%emt 0:03:34]} 33. Qxb4 {[%emt 0:02:02]} exd5 {[%emt 0:00:22]} 34. Rd3 {[%emt 0:01:01]} Kh8 {[%emt 0:02:30]} 35. Re1 {[%emt 0:00:41]} h5 {[%emt 0:01:47]} 36. Rde3 {[%emt 0:01:15]} Bd6 {[%emt 0:00:48]} 37. Qd2 {[%emt 0:00:36]} d4 {[%emt 0:00:31]} 38. Re6 {[%emt 0:00:49]} Qg7 {[%emt 0:00:29]} 39. Qd3 {[%emt 0:00:27]} g5 {[%emt 0:00:31]} 40. Rg6 {[%emt 0:00:37]} 1-0

[Event "7th Leer Open-A 2024"]
[Site "Leer"]
[Date "2024.10.31"]
[Round "1.8"]
[White "Freitag, Christian"]
[Black "Hoeffer, David"]
[Result "0-1"]
[ECO "C44"]
[WhiteElo "2000"]
[BlackElo "2304"]
[Annotator "RC"]
[PlyCount "38"]
[EventDate "2024.10.14"]
[EventType "swiss"]
[EventCountry "GER"]
[SourceTitle "playchess.com"]
[Source "ChessBase"]
[SourceQuality "1"]
[TimeControl "40/5400+30:900+30"]

1. e4 {[%emt 0:00:46]} Nc6 {[%emt 0:00:25]} 2. Nf3 {[%emt 0:00:39]} e5 {[%emt 0:00:04]} 3. c3 {[%emt 0:00:44]} f5 {[%emt 0:02:10]} 4. d4 {[%emt 0:05:31]} fxe4 {[%emt 0:08:42]} 5. Nxe5 {[%emt 0:00:32]} Nf6 {[%emt 0:00:06]} 6. Bg5 {[%emt 0:06:57]} d6 {[%emt 0:02:43]} 7. Qa4 {[%emt 0:09:13]} dxe5 {[%emt 0:02:45]} 8. dxe5 {[%emt 0:01:40]} Qd5 {[%emt 0:00:05]} 9. exf6 {[%emt 0:08:39]} Qxg5 {[%emt 0:00:10]} 10. Qxe4+ {[%emt 0:00:09]} Qe5 {[%emt 0:00:15]} 11. Qxe5+ {[%emt 0:01:20]} Nxe5 {[%emt 0:00:05]} 12. fxg7 {[%emt 0:00:05]} Bxg7 {[%emt 0:00:05]} 13. Be2 {[%emt 0:05:15]} Bf5 {[%emt 0:00:07]} 14. O-O {[%emt 0:01:06]} O-O-O {[%emt 0:00:07]} 15. h3 {[%emt 0:09:33]} Bd3 {[%emt 0:00:06]} 16. Re1 {[%emt 0:08:15]} Bxe2 {[%emt 0:00:08]} 17. Rxe2 {[%emt 0:00:05]} Rd1+ {[%emt 0:00:04]} 18. Kh2 {[%emt 0:00:05]} Nc4 {[%emt 0:00:45]} 19. b3 {[%emt 0:04:14]} Na3 {[%emt 0:00:32]} 0-1

[Event "7th Leer Open-A 2024"]
[Site "Leer"]
[Date "2024.10.31"]
[Round "1.9"]
[White "Nechitaylo, Nikita"]
[Black "Langedijk, Ardjan"]
[Result "1-0"]
[ECO "D37"]
[WhiteElo "2289"]
[BlackElo "2000"]
[Annotator "RC"]
[PlyCount "103"]
[EventDate "2024.10.14"]
[EventType "swiss"]
[EventCountry "GER"]
[SourceTitle "playchess.com"]
[Source "ChessBase"]
[SourceQuality "1"]
[TimeControl "40/5400+30:900+30"]

1. d4 {[%emt 0:00:02]} d5 {[%emt 0:00:19]} 2. c4 {[%emt 0:00:04]} e6 {[%emt 0:00:03]} 3. Nc3 {[%emt 0:00:04]} a6 {[%emt 0:00:03]} 4. cxd5 {[%emt 0:00:32]} exd5 {[%emt 0:00:07]} 5. Nf3 {[%emt 0:01:07]} Nf6 {[%emt 0:01:12]} 6. Bg5 {[%emt 0:00:19]} Be6 {[%emt 0:00:46]} 7. e3 {[%emt 0:02:26]} Nbd7 {[%emt 0:04:53]} 8. Bd3 {[%emt 0:01:14]} h6 {[%emt 0:00:42]} 9. Bf4 {[%emt 0:02:20]} g5 {[%emt 0:03:33]} 10. Be5 {[%emt 0:04:27]} g4 {[%emt 0:08:42]} 11. Bxf6 {[%emt 0:00:12]} Qxf6 {[%emt 0:00:49]} 12. Nd2 {[%emt 0:00:13]} c5 {[%emt 0:14:57]} 13. dxc5 {[%emt 0:04:13]} Nxc5 {[%emt 0:00:24]} 14. Nb3 {[%emt 0:00:43]} Rd8 {[%emt 0:08:16]} 15. Nd4 {[%emt 0:09:32]} h5 {[%emt 0:04:25]} 16. Bc2 {[%emt 0:10:26]} Bg7 {[%emt 0:12:34]} 17. Qe2 {[%emt 0:02:07]} Rc8 {[%emt 0:03:11]} 18. O-O-O {[%emt 0:09:15]} Ne4 {[%emt 0:05:28]} 19. Bxe4 {[%emt 0:01:35]} dxe4 {[%emt 0:00:56]} 20. Qc2 {[%emt 0:01:10]} O-O {[%emt 0:08:06]} 21. Kb1 {[%emt 0:03:18]} Rfe8 {[%emt 0:03:52]} 22. Nxe4 {[%emt 0:10:00]} Qe5 {[%emt 0:00:52]} 23. Nc3 {[%emt 0:00:48]} b5 {[%emt 0:02:01]} 24. a3 {[%emt 0:04:46]} Qc5 {[%emt 0:01:09]} 25. Nxe6 {[%emt 0:04:04]} Rxe6 {[%emt 0:00:53]} 26. Rd5 {[%emt 0:00:07]} Qc4 {[%emt 0:05:05]} 27. Rhd1 {[%emt 0:12:59]} b4 {[%emt 0:02:30]} 28. Rd8+ {[%emt 0:00:38]} Re8 {[%emt 0:00:09]} 29. Rxe8+ {[%emt 0:00:11]} Rxe8 {[%emt 0:00:01]} 30. Nd5 {[%emt 0:00:10]} Qxc2+ {[%emt 0:01:26]} 31. Kxc2 {[%emt 0:00:01]} bxa3 {[%emt 0:00:25]} 32. bxa3 {[%emt 0:00:02]} Rc8+ {[%emt 0:01:29]} 33. Kd3 {[%emt 0:01:09]} Rb8 {[%emt 0:01:08]} 34. a4 {[%emt 0:13:00]} Rb2 {[%emt 0:01:03]} 35. Rd2 {[%emt 0:00:10]} Rb3+ {[%emt 0:00:40]} 36. Kc4 {[%emt 0:00:04]} Ra3 {[%emt 0:01:15]} 37. Kb4 {[%emt 0:01:36]} Ra1 {[%emt 0:02:28]} 38. Ka5 {[%emt 0:03:25]} Be5 {[%emt 0:00:43]} 39. f4 {[%emt 0:00:30]} gxf3 {[%emt 0:02:01]} 40. gxf3 {[%emt 0:00:03]} Kf8 {[%emt 0:00:57]} 41. f4 {[%emt 0:15:07]} Bd6 {[%emt 0:01:14]} 42. e4 {[%emt 0:00:00]} f6 {[%emt 0:02:11]} 43. Re2 {[%emt 0:00:00]} h4 {[%emt 0:03:49]} 44. e5 {[%emt 0:00:00]} fxe5 {[%emt 0:00:03]} 45. fxe5 {[%emt 0:00:00]} Be7 {[%emt 0:05:25]} 46. Re4 {[%emt 0:00:00]} h3 {[%emt 0:02:16]} 47. Kxa6 {[%emt 0:00:00]} Ra2 {[%emt 0:00:23]} 48. e6 {[%emt 0:00:00]} Rxh2 {[%emt 0:00:24]} 49. Rf4+ {[%emt 0:00:00]} Ke8 {[%emt 0:00:39]} 50. Rf7 {[%emt 0:00:00]} Bh4 {[%emt 0:02:09]} 51. Rh7 {[%emt 0:00:00]} Rd2 {[%emt 0:00:32]} 52. Rh8# {[%emt 0:00:00]} 1-0